bitfinex/quotes_ETHUSD_20240714
["timestamp","ask_amount","ask_price","bid_price","bid_amount"]
[1720928802437,1.08928521,3180.6,3180.1,3.96152]
[1720928802646,3.44048521,3180.5,3180.2,3.14445]
[1720928802961,1.08928521,3180.4,3180.2,3.14445]
[1720928803452,2.68031897,3180.5,3180.2,3.14445]
[1720928803654,1.08933554,3180.3,3180.2,3.14445]
[1720928803963,0.32911897,3180.5,3180.4,3.14425]
[1720928804160,1.41836707,3180.5,3180.4,3.14425]
[1720928806626,1.41836707,3180.5,3180.4,3.85482]
[1720928806811,1.41836707,3180.5,3180.4,3.14425]
[1720928807013,0.32911897,3180.5,3180.4,3.14425]
[1720928807521,1.41841209,3180.5,3180.4,3.14425]
[1720928809336,1.41841209,3180.5,3180.2,3.96145]
[1720928809653,1.08929312,3180.4,3180.2,3.14445]
[1720928810334,0.32911897,3180.5,3180.3,3.14435]
[1720928810536,1.08929648,3180.4,3180.3,3.14435]
[1720928810849,0.32911897,3180.5,3180.3,3.14435]
[1720928811034,1.08930022,3180.4,3180.3,3.14435]
[1720928811761,1.08930022,3180.4,3180.2,3.14445]
[1720928811964,1.08930022,3180.3,3180.2,3.14445]
[1720928812447,1.08930022,3180.4,3180.2,3.14445]
[1720928813473,1.08936339,3180.3,3180.2,3.14445]
[1720928813836,1.08936291,3180.3,3180.2,3.14445]
[1720928815567,1.08936291,3180.3,3179.7,12.7027]
[1720928815568,1.08936291,3180.3,3179.9,0.817]
[1720928815870,1.08936291,3180.2,3180.1,3.14455]
[1720928816057,1.08936291,3180.4,3180.1,3.14455]
[1720928817182,2.68031897,3180.5,3180.1,3.14455]
[1720928817364,1.08938083,3180.4,3180.1,3.14455]
[1720928817743,1.08938083,3180.4,3180.1,3.96155]
[1720928818788,1.08938083,3180.4,3180.1,3.14455]
[1720928820477,2.68031897,3180.5,3180.1,3.14455]
[1720928820642,1.08939087,3180.3,3180.1,3.14455]
[1720928820841,1.08937246,3180.2,3180.1,3.14455]
[1720928821079,1.08936826,3180.2,3180.1,3.14455]
[1720928822993,2.68031897,3180.5,3180.1,3.14455]
[1720928823190,1.08936933,3180.2,3180.1,3.14455]
[1720928823790,1.08936906,3180.2,3180.1,3.14455]
[1720928826400,2.68031897,3180.5,3180.1,3.14455]
[1720928826589,1.08939719,3180.2,3180.1,3.14455]
[1720928827887,1.08939719,3180.2,3180.1,3.85517]
[1720928828991,1.08939719,3180.2,3180.1,5.53525]
[1720928829462,1.08939719,3180.2,3180.1,3.14455]
[1720928829658,0.32911897,3180.5,3180.1,3.14455]
[1720928829857,1.08936301,3180.4,3180.1,3.14455]
[1720928833098,0.32911897,3180.5,3180.1,3.14455]
[1720928833262,1.08937215,3180.3,3180.1,3.14455]
[1720928833460,1.08937215,3180.2,3180.1,3.14455]
[1720928833662,1.08936767,3180.2,3180.1,3.14455]
[1720928834269,0.32911897,3180.5,3180.1,3.14455]
[1720928834473,1.08937223,3180.4,3180.1,3.14455]
[1720928834688,1.08937223,3180.3,3180.1,3.14455]
[1720928834892,0.32911897,3180.5,3180.1,3.14455]
[1720928834893,1.08937223,3180.2,3180.1,3.14455]
[1720928836281,1.08936249,3180.2,3180.1,3.14455]
[1720928836483,1.08936238,3180.2,3180.1,3.14455]
[1720928836791,1.08936273,3180.4,3180.1,3.14455]
[1720928837719,1.08935502,3180.3,3180.1,3.14455]
[1720928837920,1.08935502,3180.2,3180.1,3.14455]
[1720928840022,1.08934683,3180.2,3180.1,3.14455]
[1720928840825,1.08934683,3180.2,3180.0,3.14458]
[1720928841033,1.08934683,3180.1,3180.0,3.14458]
[1720928841525,1.08934683,3180.4,3180.0,3.14458]
[1720928841730,0.32903867,3180.1,3180.0,3.14458]
[1720928842322,1.4183855,3180.1,3180.0,3.14458]
[1720928843295,1.41845535,3180.1,3180.0,3.14458]
[1720928846096,3.87025535,3180.1,3180.0,3.14458]
[1720928846501,2.78083867,3180.1,3180.0,3.14458]
[1720928846706,3.87028918,3180.1,3180.0,3.14458]
[1720928846987,2.78083867,3180.1,3180.0,3.14458]
[1720928847191,3.87028919,3180.1,3180.0,3.14458]
[1720928847399,1.41848919,3180.1,3180.0,3.14458]
[1720928849223,1.41848919,3180.1,3179.8,6.28961]
[1720928849395,1.08945052,3180.0,3179.8,6.28961]
[1720928849797,0.32903867,3180.1,3179.9,3.14473]
[1720928850000,0.32903867,3180.1,3179.9,5.41438]
[1720928850001,1.08940467,3180.0,3179.9,5.41438]
[1720928851605,1.08940467,3180.0,3179.9,3.9606984]
[1720928853236,1.08940543,3180.0,3179.9,3.9606984]
[1720928853967,1.08940543,3180.0,3179.9,3.1436984]
[1720928858930,0.32903867,3180.1,3179.9,3.1436984]
[1720928859133,1.08942401,3180.0,3179.9,3.1436984]
[1720928859851,1.08942401,3180.0,3179.7,7.42]
[1720928860066,1.08955636,3179.9,3179.7,7.42]
[1720928860363,1.08955636,3179.8,3179.7,7.42]
[1720928860513,1.08959489,3179.8,3179.7,7.42]
[1720928863230,1.08957246,3179.8,3179.7,7.42]
[1720928866757,0.37666627,3180.0,3179.7,7.42]
[1720928866946,1.08956716,3179.9,3179.7,7.42]
[1720928867151,1.08956716,3179.8,3179.7,7.42]
[1720928870052,1.0895683,3179.8,3179.7,7.42]
[1720928870430,1.08956839,3179.8,3179.7,7.42]
[1720928873240,0.37666627,3180.0,3179.7,7.42]
[1720928873444,1.0895652,3179.9,3179.7,7.42]
[1720928873646,1.0895652,3179.8,3179.7,7.42]
[1720928873862,1.0895652,3179.9,3179.7,7.42]
[1720928876531,0.37666627,3180.0,3179.7,7.42]
[1720928876870,1.08956663,3179.9,3179.7,7.42]
[1720928877074,1.08956663,3179.8,3179.7,12.96165]
[1720928877366,1.08956663,3179.8,3179.7,13.77865]
[1720928877969,0.32903867,3180.1,3179.7,10.6337]
[1720928878138,1.08942507,3180.0,3179.9,5.60915]
[1720928878480,1.08942507,3180.0,3179.9,7.729065]
[1720928878642,1.08942507,3180.0,3179.9,10.873815]
[1720928879055,1.08942507,3180.0,3179.9,10.056815]
[1720928879375,1.08942507,3180.0,3179.9,10.873815]
[1720928879577,1.08942507,3180.0,3179.9,7.1065]
[1720928880053,0.32903867,3180.1,3180.0,3.14465]
[1720928880253,1.41839333,3180.1,3180.0,3.14465]
[1720928881487,1.41839333,3180.1,3179.7,10.7014]
[1720928881488,1.41839333,3180.1,3179.8,3.14484]
[1720928881676,1.08935466,3180.0,3179.9,3.14475]
[1720928882495,0.32903867,3180.1,3179.9,3.14475]
[1720928882788,1.08938641,3180.0,3179.9,3.14475]
[1720928882989,0.32903867,3180.1,3179.9,3.14475]
[1720928883281,1.08939275,3180.0,3179.9,3.14475]
[1720928884540,1.08939275,3180.0,3179.9,8.00585064]
[1720928885500,1.08939275,3180.0,3179.9,7.18885064]
[1720928885790,0.32903867,3180.1,3180.0,3.14465]
[1720928886799,1.4184293,3180.1,3180.0,3.14465]
[1720928886967,0.32903867,3180.1,3180.0,3.14465]
[1720928887363,1.4184293,3180.1,3180.0,6.237988]
[1720928889176,0.32903867,3180.1,3180.0,6.237988]
[1720928889961,0.32903867,3180.1,3180.0,9.382638]
[1720928890465,1.41834253,3180.1,3180.0,9.382638]
[1720928892713,1.41830774,3180.1,3180.0,9.382638]
[1720928894493,1.41830774,3180.1,3180.0,6.2893]
[1720928894697,1.41838044,3180.1,3180.0,6.2893]
[1720928896108,0.32903867,3180.1,3180.0,6.2893]
[1720928896279,1.41836894,3180.1,3180.0,6.2893]
[1720928896680,1.41837784,3180.1,3180.0,6.2893]
[1720928899169,1.41836896,3180.1,3180.0,6.2893]
[1720928899409,1.41836897,3180.1,3180.0,6.2893]
[1720928901673,1.0893303,3180.1,3180.0,6.2893]
[1720928902782,2.3008,3180.4,3180.1,3.14445]
[1720928903111,1.08933579,3180.3,3180.1,3.14445]
[1720928903488,1.08933579,3180.2,3180.1,3.14445]
[1720928906185,2.3008,3180.4,3180.2,3.14442]
[1720928906393,1.08931281,3180.3,3180.2,3.14442]
[1720928906685,2.3008,3180.4,3180.2,3.14442]
[1720928906895,1.08931091,3180.3,3180.2,3.14442]
[1720928909713,0.32909139,3180.5,3180.3,3.14435]
[1720928909917,1.08929658,3180.4,3180.3,3.14435]
[1720928912818,0.32909139,3180.5,3180.3,3.14435]
[1720928912987,1.08930418,3180.4,3180.3,3.14435]
[1720928916320,0.32909139,3180.5,3180.4,3.14425]
[1720928916545,1.41838382,3180.5,3180.4,3.14425]
[1720928919496,0.32909139,3180.5,3180.4,3.14425]
[1720928919725,1.69336415,3180.5,3180.4,3.14425]
[1720928920226,1.69336415,3180.5,3180.2,3.14439]
[1720928920227,2.4081,3180.4,3180.2,3.14439]
[1720928920522,1.08934202,3180.3,3180.2,3.14439]
[1720928922822,1.08934759,3180.3,3180.2,3.14439]
[1720928926353,1.08934771,3180.3,3180.2,3.14439]
[1720928926569,1.08934771,3180.3,3180.1,3.14451]
[1720928926754,1.49949553,3180.3,3180.1,3.14451]
[1720928927057,1.08934771,3180.2,3180.1,3.14451]
[1720928927616,1.08934771,3180.3,3180.1,3.14451]
[1720928929760,1.08939673,3180.2,3180.1,3.14451]
[1720928932280,1.08939673,3180.2,3179.7,10.6055]
[1720928932281,1.08939673,3180.2,3179.8,3.14482]
[1720928932581,2.4081,3180.4,3179.8,3.14482]
[1720928932582,1.08939673,3180.1,3179.8,3.14482]
[1720928932795,1.08939673,3180.0,3179.8,3.14482]
[1720928933140,1.08946706,3179.9,3179.8,3.14482]
[1720928933683,1.08947886,3179.9,3179.8,3.14482]
[1720928936359,1.08949173,3179.9,3179.8,3.14482]
[1720928936568,1.08949181,3179.9,3179.8,3.14482]
[1720928936772,1.08949179,3179.9,3179.8,3.14482]
[1720928938555,1.08949179,3179.9,3179.8,5.48282]
[1720928939696,0.32911813,3180.1,3179.9,3.14473]
[1720928940193,1.08942822,3180.0,3179.9,3.14473]
[1720928940688,1.08942822,3180.0,3179.9,6.28948]
[1720928942283,0.32911813,3180.1,3180.0,3.14465]
[1720928942455,1.41849176,3180.1,3180.0,3.14465]
[1720928945587,1.41852681,3180.1,3180.0,3.14465]
[1720928946299,1.41852666,3180.1,3180.0,3.14465]
[1720928948869,1.41853822,3180.1,3180.0,3.14465]
[1720928950403,1.80569204,3180.1,3180.0,3.14465]
[1720928950570,1.41853822,3180.1,3180.0,3.14465]
[1720928951304,1.41853822,3180.1,3179.7,3.14485]
[1720928951480,1.08942009,3180.0,3179.8,3.14483]
[1720928952206,1.08948319,3179.9,3179.8,3.14483]
[1720928953573,1.08948319,3179.9,3179.7,3.14487]
[1720928953769,1.08948319,3179.8,3179.7,3.14487]
[1720928953973,1.08948319,3180.0,3179.7,3.14487]
[1720928954194,1.08948319,3179.9,3179.7,3.14487]
[1720928954508,1.08948319,3179.8,3179.7,3.14487]
[1720928954692,1.08948319,3180.0,3179.7,3.14487]
[1720928954895,1.08948376,3179.9,3179.7,3.14487]
[1720928955107,1.08948376,3179.8,3179.7,3.14487]
[1720928955470,0.32911813,3180.1,3179.7,3.14487]
[1720928955677,1.08946662,3179.8,3179.7,3.14487]
[1720928957414,1.08946662,3179.8,3179.7,6.193561]
[1720928958895,0.32911813,3180.1,3179.8,3.14475]
[1720928959189,1.0894299,3180.0,3179.8,3.14475]
[1720928959526,1.08942966,3179.9,3179.8,3.14475]
[1720928962233,0.32911813,3180.1,3180.0,3.14465]
[1720928963190,1.41854587,3180.1,3180.0,3.14465]
[1720928964838,1.41854587,3180.1,3180.0,6.67440706]
[1720928965514,1.41845458,3180.1,3180.0,6.67440706]
[1720928969052,1.41844633,3180.1,3180.0,6.67440706]
[1720928971838,1.41844633,3180.1,3180.0,13.09405706]
[1720928972257,0.32911813,3180.1,3180.0,13.09405706]
[1720928972418,1.41833857,3180.1,3180.0,13.09405706]
[1720928972838,1.41835945,3180.1,3180.0,13.09405706]
[1720928975428,1.41833451,3180.1,3180.0,13.09405706]
[1720928975641,1.41833394,3180.1,3180.0,13.09405706]
[1720928977168,1.08921581,3180.1,3180.0,13.09405706]
[1720928978955,0.32908812,3180.5,3180.4,6.2885]
[1720928979425,1.41831339,3180.5,3180.4,6.2885]
[1720928981541,3.69941339,3180.5,3180.4,6.2885]
[1720928982360,0.32908812,3180.5,3180.4,6.2885]
[1720928982570,1.41834727,3180.5,3180.4,6.2885]
[1720928982862,0.32908812,3180.5,3180.4,6.2885]
[1720928983572,1.4183051,3180.5,3180.4,6.2885]
[1720928985638,0.32908812,3180.5,3180.4,6.2885]
[1720928985838,1.41829254,3180.5,3180.4,6.2885]
[1720928989174,1.41831858,3180.5,3180.4,6.2885]
[1720928992590,1.41829036,3180.5,3180.4,6.2885]
[1720928995993,0.32908812,3180.5,3180.4,6.2885]
[1720928996151,1.41832758,3180.5,3180.4,6.2885]
[1720928996549,1.41832589,3180.5,3180.4,6.2885]
[1720928997582,1.41832872,3180.5,3180.4,6.2885]
[1720928999388,1.41832782,3180.5,3180.4,6.2885]
[1720928999555,1.41833174,3180.5,3180.4,6.2885]
[1720929000473,3.90973174,3180.5,3180.4,6.2885]
[1720929000650,4.30070491,3180.5,3180.4,6.2885]
[1720929001087,4.30070491,3180.5,3180.4,3.14425]
[1720929001753,3.21146129,3180.5,3180.4,3.14425]
[1720929001980,4.30077804,3180.5,3180.4,3.14425]
[1720929002686,1.41840487,3180.5,3180.4,3.14425]
[1720929002903,1.41840487,3180.5,3180.4,6.2885]
[1720929003900,1.41840487,3180.5,3180.4,7.1055]
[1720929008499,1.41824001,3180.5,3180.4,10.24975]
[1720929008795,1.41823989,3180.5,3180.4,10.24975]
[1720929009095,1.41816363,3180.5,3180.4,10.24975]
[1720929010733,1.41816363,3180.5,3180.4,11.828814]
[1720929011712,1.41812863,3180.5,3180.4,17.225314]
[1720929011923,1.4181387,3180.5,3180.4,17.225314]
[1720929012089,1.41812044,3180.5,3180.4,17.225314]
[1720929012288,1.08903232,3180.5,3180.4,17.225314]
[1720929012483,0.32911482,3180.9,3180.8,6.28772]
[1720929012684,0.32911482,3180.9,3180.8,8.047893]
[1720929013220,1.41814545,3180.9,3180.8,8.047893]
[1720929014216,1.41814545,3180.9,3180.8,13.588253]
[1720929015319,1.41808238,3180.9,3180.8,13.588253]
[1720929015516,1.41808407,3180.9,3180.8,13.588253]
[1720929015950,1.41808373,3180.9,3180.8,13.588253]
[1720929019023,0.32911482,3180.9,3180.8,13.588253]
[1720929019550,2.3325,3181.8,3181.6,3.14303]
[1720929019844,1.08892756,3181.7,3181.6,3.14303]
[1720929022249,1.08892259,3181.7,3181.6,3.14303]
[1720929023109,3.42142259,3181.7,3181.6,3.14303]
[1720929025640,3.42146527,3181.7,3181.6,3.14303]
[1720929026145,3.42146527,3181.7,3181.4,3.14325]
[1720929026448,1.48735083,3181.6,3181.4,3.14325]
[1720929026618,1.48735083,3181.6,3181.5,3.14317]
[1720929026619,0.39838556,3181.6,3181.5,3.14317]
[1720929026813,1.48735864,3181.6,3181.5,3.14317]
[1720929028508,1.08897308,3181.6,3181.5,3.14317]
[1720929028937,2.3325,3181.7,3181.5,3.14317]
[1720929029152,1.08894964,3181.6,3181.5,3.14317]
[1720929032440,1.08898898,3181.6,3181.5,3.14317]
[1720929032643,1.08898895,3181.6,3181.5,3.14317]
[1720929032968,1.46403464,3181.6,3181.5,3.14317]
[1720929035615,0.37506293,3181.6,3181.5,3.14317]
[1720929035819,1.08896158,3181.6,3181.5,3.14317]
[1720929038952,1.0889105,3181.6,3181.5,3.14317]
[1720929042251,1.08894362,3181.6,3181.5,3.14317]
[1720929045679,1.08893843,3181.6,3181.5,3.14317]
[1720929046047,0.32914032,3181.8,3181.5,3.14317]
[1720929046374,1.08893926,3181.7,3181.5,3.14317]
[1720929046559,1.08893926,3181.6,3181.5,3.14317]
[1720929048966,0.32914032,3181.8,3181.6,3.14305]
[1720929049282,1.08888072,3181.7,3181.6,3.14305]
[1720929052259,0.32914032,3181.8,3181.6,3.14305]
[1720929052476,1.08886303,3181.7,3181.6,3.14305]
[1720929055785,0.32914032,3181.8,3181.7,3.14297]
[1720929056008,1.41799905,3181.8,3181.7,3.14297]
[1720929059184,1.41799882,3181.8,3181.7,3.14297]
[1720929059595,1.41800069,3181.8,3181.7,3.14297]
[1720929061731,1.41799907,3181.8,3181.7,3.14297]
[1720929062334,1.41799907,3181.8,3181.5,3.14309]
[1720929062508,3.40835875,3181.7,3181.4,3.14323]
[1720929062712,1.4626942,3181.6,3181.4,3.14323]
[1720929062940,1.08894429,3181.5,3181.4,3.14323]
[1720929063155,1.08894429,3181.5,3181.2,3.14343]
[1720929063648,2.3195,3181.4,3181.0,3.14363]
[1720929063855,1.08894429,3181.3,3181.0,3.14363]
[1720929064009,1.46269711,3181.3,3181.0,3.14363]
[1720929064207,1.08894429,3181.2,3181.0,3.14363]
[1720929064835,0.37375282,3181.3,3181.0,3.14363]
[1720929065138,1.08905975,3181.2,3181.0,3.14363]
[1720929065361,0.37375282,3181.3,3181.0,3.14363]
[1720929065362,1.08905975,3181.1,3181.0,3.14363]
[1720929068279,2.64858393,3181.4,3181.0,3.14363]
[1720929068479,1.08906664,3181.3,3181.0,3.14363]
[1720929068645,2.95081731,3181.4,3181.0,3.14363]
[1720929068646,1.08906664,3181.2,3181.0,3.14363]
[1720929068847,1.08906664,3181.1,3181.0,3.14363]
[1720929071051,1.08906664,3181.1,3180.5,2.2509]
[1720929071351,1.08906664,3181.1,3180.2,6.14443]
[1720929071352,6.55223664,3181.0,3180.3,3.14428]
[1720929071557,5.46317,3181.0,3180.3,3.14428]
[1720929071759,1.08924728,3180.9,3180.3,3.14428]
[1720929071970,5.46317,3181.0,3180.3,3.14428]
[1720929072167,1.08925917,3180.8,3180.5,0.817]
[1720929072482,1.08925917,3180.7,3180.5,4.357207]
[1720929072654,1.08925917,3180.6,3180.5,4.357207]
[1720929073697,1.08925917,3180.6,3180.5,3.14409]
[1720929074005,3.40875917,3180.6,3180.0,3.96156]
[1720929074144,1.08925917,3180.5,3180.0,3.96156]
[1720929074825,1.08926755,3180.4,3180.0,3.96156]
[1720929075119,2.3195,3180.6,3180.0,4.672196]
[1720929075120,1.08926755,3180.3,3180.0,4.672196]
[1720929075278,1.08926755,3180.5,3180.0,4.672196]
[1720929075810,1.08926755,3180.5,3180.1,3.14455]
[1720929076118,1.089272,3180.4,3180.1,3.14455]
[1720929076318,2.3195,3180.6,3180.1,3.14455]
[1720929076319,1.089272,3180.3,3180.1,3.14455]
[1720929076620,1.089272,3180.2,3180.1,3.14455]
[1720929078380,1.089306,3180.2,3180.1,3.14455]
[1720929079220,2.3195,3180.6,3180.1,3.14455]
[1720929079516,1.0893051,3180.5,3180.1,3.14455]
[1720929083519,1.08935699,3180.4,3180.1,3.14455]
[1720929083835,1.08935699,3180.3,3180.1,3.14455]
[1720929084124,1.08935699,3180.2,3180.1,3.14455]
[1720929085006,1.08932402,3180.2,3180.1,3.14455]
[1720929085440,2.3195,3180.6,3180.1,3.14455]
[1720929085643,1.08930904,3180.5,3180.1,3.14455]
[1720929088414,1.0893239,3180.4,3180.1,3.14455]
[1720929088750,1.0893239,3180.3,3180.1,3.14455]
[1720929089055,1.0893239,3180.2,3180.1,3.14455]
[1720929091976,1.08931654,3180.2,3180.1,3.14455]
[1720929094281,1.08931654,3180.2,3179.9,3.14468]
[1720929094492,1.08931654,3180.1,3179.9,3.14468]
[1720929094644,1.08931654,3180.2,3180.0,3.14465]
[1720929095145,2.8150122,3180.3,3180.0,3.14465]
[1720929095371,1.08940647,3180.2,3180.0,3.14465]
[1720929095678,1.08940142,3180.1,3180.0,3.14465]
[1720929097588,1.08940142,3180.1,3179.8,3.14483]
[1720929097745,1.08940142,3180.0,3179.8,3.14483]
[1720929097945,1.08940142,3180.2,3179.8,3.14483]
[1720929098174,1.08940142,3180.1,3179.8,3.14483]
[1720929098382,3.41879162,3180.3,3179.7,3.14493]
[1720929098543,1.08944607,3180.0,3179.7,3.14493]
[1720929098744,1.08944607,3179.9,3179.7,3.14493]
[1720929098940,1.08944607,3179.8,3179.7,3.14493]
[1720929101896,1.08943801,3179.8,3179.7,3.14493]
[1720929105195,1.08948231,3179.8,3179.7,3.14493]
[1720929107831,1.08948231,3179.8,3179.5,11.38207]
[1720929108040,1.08948231,3179.7,3179.5,11.38207]
[1720929108244,1.08948231,3179.9,3179.5,11.38207]
[1720929108528,2.299,3180.0,3179.5,11.38207]
[1720929108728,1.08950519,3179.9,3179.5,11.38207]
[1720929108935,1.08950519,3179.8,3179.5,11.38207]
[1720929109233,2.299,3180.0,3179.6,3.14504]
[1720929109234,1.0895056,3179.7,3179.6,3.14504]
[1720929111197,1.0895056,3179.7,3179.6,4.597751]
[1720929111627,1.08946552,3179.7,3179.6,4.597751]
[1720929111810,2.299,3180.2,3179.6,4.597751]
[1720929112011,1.0894655,3179.7,3179.6,3.14504]
[1720929112425,1.0894655,3180.1,3179.6,3.14504]
[1720929112637,1.0894655,3180.0,3179.6,3.14504]
[1720929112839,1.0894655,3180.1,3179.6,3.14504]
[1720929113115,1.0894655,3180.0,3179.6,3.14504]
[1720929113421,1.0894655,3180.1,3179.6,3.14504]
[1720929113757,1.0894655,3180.0,3179.6,3.14504]
[1720929113936,2.299,3180.2,3179.6,3.14504]
[1720929113937,1.0894655,3180.1,3179.6,3.14504]
[1720929115245,1.0894861,3180.0,3179.6,3.14504]
[1720929115572,1.0894861,3179.9,3179.6,3.14504]
[1720929115741,1.0894861,3180.1,3179.6,3.14504]
[1720929118570,2.299,3180.2,3179.6,3.14504]
[1720929118728,1.08947077,3180.1,3179.6,3.14504]
[1720929119061,2.299,3180.2,3179.6,3.14504]
[1720929119255,1.08948308,3180.1,3179.6,3.14504]
[1720929119451,1.08948308,3180.0,3179.6,3.14504]
[1720929119656,1.08948308,3179.9,3179.6,3.14504]
[1720929119871,1.08948308,3179.8,3179.6,3.14504]
[1720929120034,1.08948308,3179.7,3179.6,3.14504]
[1720929120736,1.08948308,3180.1,3179.6,3.14504]
[1720929120937,1.08948308,3180.0,3179.6,3.14504]
[1720929121248,1.08948619,3179.9,3179.5,11.38207]
[1720929121446,1.08948619,3179.8,3179.5,11.38207]
[1720929121646,1.08948619,3180.1,3179.5,11.38207]
[1720929121862,1.0895091,3180.0,3179.5,11.38207]
[1720929122066,1.0895091,3179.9,3179.5,11.38207]
[1720929122265,1.0895091,3180.1,3179.6,3.14504]
[1720929122440,1.0895091,3180.0,3179.6,3.14504]
[1720929122775,1.0895091,3179.9,3179.6,3.14504]
[1720929122978,1.0895091,3180.1,3179.6,3.14504]
[1720929123277,1.0895091,3180.0,3179.6,3.14504]
[1720929123493,1.0895091,3180.1,3179.5,11.38207]
[1720929124169,1.0895091,3180.1,3179.5,10.56507]
[1720929124372,5.44347,3180.2,3179.5,10.56507]
[1720929124578,1.0895159,3180.1,3179.5,10.56507]
[1720929124772,1.0895159,3180.0,3179.5,10.56507]
[1720929124974,1.0895159,3180.1,3179.5,10.56507]
[1720929125275,4.31271359,3180.1,3179.5,7.42]
[1720929125490,3.14476,3179.9,3179.5,7.42]
[1720929125665,3.56926842,3179.9,3179.5,7.42]
[1720929125841,1.0895159,3179.8,3179.5,7.42]
[1720929126550,3.14495,3179.7,3179.5,7.42]
[1720929126752,6.6989559,3179.6,3178.9,7.42]
[1720929127073,1.0895159,3179.5,3178.9,7.42]
[1720929127655,4.60841581,3179.5,3178.9,7.42]
[1720929127846,1.08972679,3179.4,3178.9,7.42]
[1720929128053,1.08972679,3179.3,3178.9,7.42]
[1720929128238,1.08972679,3179.4,3178.9,7.42]
[1720929128443,1.08972679,3179.3,3178.9,7.42]
[1720929128660,1.08972679,3179.2,3178.9,7.42]
[1720929128843,1.08972679,3179.1,3178.9,10.56573]
[1720929129161,1.08972679,3179.0,3178.9,10.56573]
[1720929129342,1.08972679,3179.0,3178.9,13.56573]
[1720929130421,1.08972679,3179.0,3178.9,10.56573]
[1720929130991,1.08972679,3179.0,3178.9,7.42]
[1720929131184,2.4644,3179.2,3178.9,7.42]
[1720929131405,1.08977967,3179.1,3178.9,7.42]
[1720929131608,1.08977967,3179.0,3178.9,7.42]
[1720929131798,1.08978037,3179.0,3178.9,7.42]
[1720929132218,2.71084,3179.2,3178.9,7.42]
[1720929132219,1.08978037,3179.1,3178.9,7.42]
[1720929132383,1.08978037,3179.0,3178.9,7.42]
[1720929133409,1.08978037,3179.0,3178.6,7.42]
[1720929133591,3.55418037,3178.9,3178.6,7.42]
[1720929133925,1.08978037,3178.8,3178.6,7.42]
[1720929134512,1.08988065,3178.7,3178.6,7.42]
[1720929134695,1.08988007,3178.7,3178.6,7.42]
[1720929138524,1.08988007,3178.7,3178.6,11.83148016]
[1720929139623,1.08988007,3178.7,3178.6,7.42]
[1720929140118,2.4771,3178.8,3178.6,7.42]
[1720929141923,3.2941,3178.7,3178.6,7.42]
[1720929142521,3.62325627,3178.7,3178.6,7.42]
[1720929142723,4.39310218,3178.7,3178.6,7.42]
[1720929143096,6.72204218,3178.7,3178.6,7.42]
[1720929144092,3.57610218,3178.7,3178.6,7.42]
[1720929144332,0.32915627,3178.7,3178.6,7.42]
[1720929150440,0.32915627,3178.7,3178.6,10.56603]
[1720929154351,1.41906824,3178.7,3178.6,10.56603]
[1720929157463,0.32915627,3178.7,3178.6,10.56603]
[1720929157650,1.41904111,3178.7,3178.6,10.56603]
[1720929157959,1.41904111,3178.7,3178.6,3.14603]
[1720929159979,1.41904111,3178.7,3178.6,6.29206]
[1720929160185,1.41904111,3178.7,3178.6,6.921266]
[1720929161002,0.32915627,3178.7,3178.6,6.921266]
[1720929161471,1.41899616,3178.7,3178.6,6.921266]
[1720929162055,1.41899616,3178.7,3178.6,6.29206]
[1720929164194,0.32915627,3178.7,3178.6,7.10906]
[1720929164348,1.41897769,3178.7,3178.6,7.10906]
[1720929167485,0.32915627,3178.7,3178.6,7.10906]
[1720929168485,1.41897174,3178.7,3178.6,7.10906]
[1720929168656,1.41897174,3178.7,3178.6,8.379245]
[1720929170893,0.32915627,3178.7,3178.6,8.379245]
[1720929171078,1.41896322,3178.7,3178.6,8.379245]
[1720929171246,0.32915627,3178.7,3178.6,8.379245]
[1720929172165,1.41896322,3178.7,3178.6,8.379245]
[1720929174452,1.41895667,3178.7,3178.6,8.379245]
[1720929174892,0.32915627,3178.7,3178.6,8.379245]
[1720929175268,1.41895552,3178.7,3178.6,8.379245]
[1720929176857,1.41895552,3178.7,3178.6,3.14603]
[1720929177057,3.70075552,3178.7,3178.6,3.14603]
[1720929177762,3.70081194,3178.7,3178.6,3.14603]
[1720929178472,1.41901194,3178.7,3178.6,3.14603]
[1720929180802,1.41905808,3178.7,3178.6,3.14603]
[1720929181092,4.18897389,3178.7,3178.6,3.14603]
[1720929181254,3.80815808,3178.7,3178.6,3.14603]
[1720929183501,2.71825627,3178.7,3178.6,3.14603]
[1720929183794,2.71825627,3178.7,3178.4,3.14622]
[1720929183795,3.80818901,3178.7,3178.4,3.14622]
[1720929183994,2.71825627,3178.7,3178.4,3.14622]
[1720929184193,1.08997282,3178.6,3178.4,3.14622]
[1720929184410,1.08997282,3178.5,3178.4,3.14622]
[1720929186674,1.08997282,3178.5,3178.4,6.29245]
[1720929186879,0.32915627,3178.7,3178.6,3.14603]
[1720929187314,1.4190434,3178.7,3178.6,3.14603]
[1720929190511,1.41900179,3178.7,3178.6,3.14603]
[1720929193615,0.32915627,3178.7,3178.6,3.14603]
[1720929193823,1.41900734,3178.7,3178.6,3.14603]
[1720929194181,1.4190145,3178.7,3178.6,3.14603]
[1720929195916,1.4190145,3178.7,3178.6,6.29206]
[1720929196114,1.4190145,3178.7,3178.6,6.921266]
[1720929196681,1.41899267,3178.7,3178.6,6.921266]
[1720929197198,1.41899266,3178.7,3178.6,10.061966]
[1720929200243,0.32915627,3178.7,3178.6,10.061966]
[1720929200524,1.41891344,3178.7,3178.6,10.061966]
[1720929200724,1.41890826,3178.7,3178.6,10.061966]
[1720929202124,1.08975199,3178.7,3178.6,10.061966]
[1720929202424,1.08975199,3178.7,3178.6,13.207996]
[1720929203928,0.32913336,3179.1,3179.0,6.29128]
[1720929204123,1.41879661,3179.1,3179.0,6.29128]
[1720929204331,1.41880771,3179.1,3179.0,7.002108]
[1720929206314,1.41880771,3179.1,3179.0,6.29128]
[1720929207093,1.41880771,3179.1,3179.0,3.14564]
[1720929207406,1.41888381,3179.1,3179.0,3.14564]
[1720929210596,0.32913336,3179.1,3179.0,3.14564]
[1720929210811,1.41889433,3179.1,3179.0,3.14564]
[1720929213838,0.32913336,3179.1,3179.0,3.14564]
[1720929214050,1.41888334,3179.1,3179.0,3.14564]
[1720929214337,0.32913336,3179.1,3179.0,3.14564]